[Event "Titled Tuesday Blitz June 13 Late 2023"]
[White "Bazeev, German"]
[Black "Makarian, Rudik"]
[WhiteFideId "24119350"]
[BlackFideId "44105681"]
[WhiteElo "2466"]
[BlackElo "2451"]
[Result "0-1"]
[Round "5"]
[TimeControl "180+2"]
[Date "2023.06.13"]
[WhiteClock "0:00:56"]
[BlackClock "0:00:50"]
[Board "11"]

1. c4 {[%clk 0:03:00]}  Nf6 {[%clk 0:03:00]} 2. Nc3 {[%clk 0:03:00]}  e6 {[%clk 0:03:00]} 3. e4 {[%clk 0:02:59]}  c5 {[%clk 0:03:01]} 4. f4 {[%clk 0:02:59]}  Ng8 {[%clk 0:03:02]} 5. Nf3 {[%clk 0:02:56]}  Nc6 {[%clk 0:03:02]} 6. d3 {[%clk 0:02:54]}  Nge7 {[%clk 0:03:01]} 7. g3 {[%clk 0:02:51]}  g6 {[%clk 0:03:01]} 8. Bg2 {[%clk 0:02:47]}  Bg7 {[%clk 0:03:00]} 9. O-O {[%clk 0:02:46]}  O-O {[%clk 0:03:00]} 10. Be3 {[%clk 0:02:47]}  Nd4 {[%clk 0:02:56]} 11. e5 {[%clk 0:02:44]}  Nef5 {[%clk 0:02:46]} 12. Bf2 {[%clk 0:02:43]}  d6 {[%clk 0:02:47]} 13. exd6 {[%clk 0:02:21]}  Qxd6 {[%clk 0:02:45]} 14. Ne4 {[%clk 0:02:21]}  Qc7 {[%clk 0:02:41]} 15. Ne5 {[%clk 0:02:15]}  Rb8 {[%clk 0:02:19]} 16. b4 {[%clk 0:02:15]}  b6 {[%clk 0:02:16]} 17. Qa4 {[%clk 0:01:49]}  cxb4 {[%clk 0:01:44]} 18. Rae1 {[%clk 0:01:29]}  f6 {[%clk 0:01:25]} 19. Ng4 {[%clk 0:01:20]}  Bd7 {[%clk 0:01:11]} 20. Qxb4 {[%clk 0:01:10]}  h5 {[%clk 0:00:59]} 21. Ngxf6+ {[%clk 0:00:57]}  Rxf6 {[%clk 0:00:50]} 22. Nxf6+ {[%clk 0:00:58]}  Bxf6 {[%clk 0:00:51]} 23. Qb2 {[%clk 0:00:56]}  Nf3+ {[%clk 0:00:50]} 0-1


[Site "https://www.chess.com"]

[Event "Titled Tuesday Blitz June 13 Late 2023"]
[White "Sviridov, Valery"]
[Black "Gadimbayli, Abdulla"]
[WhiteFideId "4120680"]
[BlackFideId "13404938"]
[WhiteElo "2457"]
[BlackElo "2386"]
[Result "1/2-1/2"]
[Round "5"]
[TimeControl "180+2"]
[Date "2023.06.13"]
[WhiteClock "0:00:23"]
[BlackClock "0:00:06"]
[Board "12"]

1. d4 {[%clk 0:02:53]}  d5 {[%clk 0:03:00]} 2. Nf3 {[%clk 0:02:53]}  Nc6 {[%clk 0:03:00]} 3. c4 {[%clk 0:02:53]}  e5 {[%clk 0:03:00]} 4. dxe5 {[%clk 0:02:50]}  d4 {[%clk 0:03:01]} 5. a3 {[%clk 0:02:46]}  Nge7 {[%clk 0:03:01]} 6. b4 {[%clk 0:02:45]}  Ng6 {[%clk 0:03:01]} 7. Bb2 {[%clk 0:02:46]}  a5 {[%clk 0:03:01]} 8. b5 {[%clk 0:02:45]}  Ncxe5 {[%clk 0:03:02]} 9. Nxe5 {[%clk 0:02:45]}  Nxe5 {[%clk 0:03:03]} 10. e3 {[%clk 0:02:46]}  Be6 {[%clk 0:03:03]} 11. Qxd4 {[%clk 0:02:45]}  Qxd4 {[%clk 0:03:03]} 12. Bxd4 {[%clk 0:02:45]}  Nxc4 {[%clk 0:03:03]} 13. Be2 {[%clk 0:02:41]}  f6 {[%clk 0:02:41]} 14. O-O {[%clk 0:02:39]}  a4 {[%clk 0:02:39]} 15. Rc1 {[%clk 0:02:39]}  Na5 {[%clk 0:02:39]} 16. Nd2 {[%clk 0:02:36]}  Bd6 {[%clk 0:02:37]} 17. Bd1 {[%clk 0:02:19]}  Nb3 {[%clk 0:02:03]} 18. Nxb3 {[%clk 0:02:08]}  axb3 {[%clk 0:01:59]} 19. a4 {[%clk 0:02:09]}  Kd7 {[%clk 0:01:17]} 20. Rcb1 {[%clk 0:02:09]}  c5 {[%clk 0:01:12]} 21. bxc6+ {[%clk 0:02:08]}  bxc6 {[%clk 0:01:13]} 22. Bxb3 {[%clk 0:02:08]}  Bxb3 {[%clk 0:01:01]} 23. Rxb3 {[%clk 0:02:09]}  c5 {[%clk 0:01:02]} 24. Bc3 {[%clk 0:02:05]}  Ra7 {[%clk 0:01:01]} 25. Kf1 {[%clk 0:02:05]}  Rha8 {[%clk 0:01:00]} 26. a5 {[%clk 0:02:02]}  Bc7 {[%clk 0:00:54]} 27. Rba3 {[%clk 0:01:43]}  Kc6 {[%clk 0:00:53]} 28. Ke2 {[%clk 0:01:43]}  Kb5 {[%clk 0:00:52]} 29. Rb1+ {[%clk 0:01:39]}  Kc6 {[%clk 0:00:50]} 30. Rba1 {[%clk 0:01:33]}  Kb5 {[%clk 0:00:51]} 31. Rb1+ {[%clk 0:01:21]}  Kc6 {[%clk 0:00:51]} 32. Kd3 {[%clk 0:01:22]}  Bxa5 {[%clk 0:00:44]} 33. Rba1 {[%clk 0:01:22]}  Kb5 {[%clk 0:00:39]} 34. Rxa5+ {[%clk 0:01:14]}  Rxa5 {[%clk 0:00:40]} 35. Rxa5+ {[%clk 0:01:15]}  Rxa5 {[%clk 0:00:41]} 36. Bxa5 {[%clk 0:01:16]}  Kxa5 {[%clk 0:00:42]} 37. Kc4 {[%clk 0:01:16]}  Kb6 {[%clk 0:00:42]} 38. e4 {[%clk 0:01:15]}  Kc6 {[%clk 0:00:33]} 39. f4 {[%clk 0:01:14]}  Kd6 {[%clk 0:00:30]} 40. Kb5 {[%clk 0:01:13]}  g5 {[%clk 0:00:25]} 41. g3 {[%clk 0:01:10]}  g4 {[%clk 0:00:22]} 42. Kc4 {[%clk 0:00:53]}  Kc6 {[%clk 0:00:22]} 43. Kc3 {[%clk 0:00:53]}  Kd6 {[%clk 0:00:17]} 44. Kd3 {[%clk 0:00:50]}  Kd7 {[%clk 0:00:15]} 45. Kc3 {[%clk 0:00:47]}  Kd6 {[%clk 0:00:15]} 46. Kb3 {[%clk 0:00:44]}  Kd7 {[%clk 0:00:14]} 47. Ka4 {[%clk 0:00:40]}  Ke6 {[%clk 0:00:07]} 48. Ka5 {[%clk 0:00:34]}  Ke7 {[%clk 0:00:05]} 49. Kb5 {[%clk 0:00:27]}  Kd6 {[%clk 0:00:06]} 50. Kc4 {[%clk 0:00:28]}  Kc6 {[%clk 0:00:06]} 51. Kc3 {[%clk 0:00:23]}  Kd6 {[%clk 0:00:06]} 1/2-1/2


[Site "https://www.chess.com"]

[Event "Titled Tuesday Blitz June 13 Late 2023"]
[White "Yanchenko, Roman"]
[Black "Swiercz, Dariusz"]
[WhiteFideId "4137329"]
[BlackFideId "1126881"]
[WhiteElo "2491"]
[BlackElo "2620"]
[Result "0-1"]
[Round "5"]
[TimeControl "180+2"]
[Date "2023.06.13"]
[WhiteClock "0:00:04"]
[BlackClock "0:00:09"]
[Board "14"]

1. d4 {[%clk 0:03:00]}  Nf6 {[%clk 0:02:59]} 2. Nf3 {[%clk 0:03:01]}  g6 {[%clk 0:02:59]} 3. Bf4 {[%clk 0:03:00]}  Bg7 {[%clk 0:02:59]} 4. e3 {[%clk 0:03:01]}  O-O {[%clk 0:02:59]} 5. Be2 {[%clk 0:03:01]}  d6 {[%clk 0:03:00]} 6. O-O {[%clk 0:03:01]}  b6 {[%clk 0:03:00]} 7. h3 {[%clk 0:03:00]}  Bb7 {[%clk 0:03:01]} 8. a4 {[%clk 0:02:59]}  Nc6 {[%clk 0:03:00]} 9. Na3 {[%clk 0:02:58]}  Nd7 {[%clk 0:02:54]} 10. Nc4 {[%clk 0:02:56]}  e5 {[%clk 0:02:47]} 11. dxe5 {[%clk 0:02:55]}  dxe5 {[%clk 0:02:41]} 12. Bg5 {[%clk 0:02:55]}  f6 {[%clk 0:02:36]} 13. Bh4 {[%clk 0:02:45]}  Nc5 {[%clk 0:02:29]} 14. a5 {[%clk 0:02:38]}  Qxd1 {[%clk 0:02:28]} 15. Rfxd1 {[%clk 0:02:38]}  Rad8 {[%clk 0:02:20]} 16. axb6 {[%clk 0:02:14]}  axb6 {[%clk 0:02:18]} 17. c3 {[%clk 0:01:53]}  Rxd1+ {[%clk 0:02:07]} 18. Rxd1 {[%clk 0:01:49]}  g5 {[%clk 0:02:04]} 19. Bg3 {[%clk 0:01:49]}  Rd8 {[%clk 0:02:04]} 20. Rxd8+ {[%clk 0:01:47]}  Nxd8 {[%clk 0:02:05]} 21. Nfd2 {[%clk 0:01:46]}  Nde6 {[%clk 0:01:57]} 22. Bg4 {[%clk 0:01:43]}  Kf7 {[%clk 0:01:55]} 23. Bf5 {[%clk 0:01:37]}  h6 {[%clk 0:01:50]} 24. f3 {[%clk 0:01:34]}  Bf8 {[%clk 0:01:49]} 25. Bc2 {[%clk 0:01:25]}  Ba6 {[%clk 0:01:41]} 26. e4 {[%clk 0:01:21]}  Nb7 {[%clk 0:01:33]} 27. Bf2 {[%clk 0:01:00]}  Bc5 {[%clk 0:01:25]} 28. b4 {[%clk 0:00:54]}  Bxf2+ {[%clk 0:01:23]} 29. Kxf2 {[%clk 0:00:55]}  h5 {[%clk 0:01:20]} 30. g3 {[%clk 0:00:53]}  h4 {[%clk 0:01:16]} 31. Bb3 {[%clk 0:00:52]}  Ke7 {[%clk 0:01:11]} 32. gxh4 {[%clk 0:00:46]}  gxh4 {[%clk 0:01:11]} 33. Ne3 {[%clk 0:00:46]}  Nf4 {[%clk 0:01:06]} 34. Nf5+ {[%clk 0:00:46]}  Kd7 {[%clk 0:01:04]} 35. Nxh4 {[%clk 0:00:41]}  Nxh3+ {[%clk 0:01:04]} 36. Ke3 {[%clk 0:00:41]}  Nd6 {[%clk 0:01:00]} 37. Ng2 {[%clk 0:00:34]}  Bb7 {[%clk 0:00:52]} 38. f4 {[%clk 0:00:33]}  Nb5 {[%clk 0:00:33]} 39. fxe5 {[%clk 0:00:32]}  fxe5 {[%clk 0:00:34]} 40. Ba4 {[%clk 0:00:31]}  Bc6 {[%clk 0:00:33]} 41. Bxb5 {[%clk 0:00:30]}  Bxb5 {[%clk 0:00:34]} 42. Nh4 {[%clk 0:00:31]}  Nf4 {[%clk 0:00:31]} 43. Nhf3 {[%clk 0:00:30]}  Ke6 {[%clk 0:00:26]} 44. c4 {[%clk 0:00:28]}  Ba6 {[%clk 0:00:23]} 45. Ne1 {[%clk 0:00:27]}  Nh5 {[%clk 0:00:17]} 46. Nd3 {[%clk 0:00:27]}  Nf6 {[%clk 0:00:17]} 47. Kf3 {[%clk 0:00:22]}  Bb7 {[%clk 0:00:17]} 48. Ke3 {[%clk 0:00:20]}  Bc6 {[%clk 0:00:17]} 49. Kf3 {[%clk 0:00:19]}  Be8 {[%clk 0:00:16]} 50. Ke3 {[%clk 0:00:19]}  Bg6 {[%clk 0:00:17]} 51. c5 {[%clk 0:00:18]}  Be8 {[%clk 0:00:16]} 52. cxb6 {[%clk 0:00:18]}  cxb6 {[%clk 0:00:16]} 53. Nc4 {[%clk 0:00:18]}  Nd7 {[%clk 0:00:13]} 54. Na3 {[%clk 0:00:12]}  Nf6 {[%clk 0:00:11]} 55. Nc4 {[%clk 0:00:13]}  Nd7 {[%clk 0:00:12]} 56. Nc1 {[%clk 0:00:12]}  Bh5 {[%clk 0:00:08]} 57. Na2 {[%clk 0:00:12]}  Bd1 {[%clk 0:00:07]} 58. Nc3 {[%clk 0:00:12]}  Bb3 {[%clk 0:00:07]} 59. Nd2 {[%clk 0:00:12]}  Bc2 {[%clk 0:00:07]} 60. Nf3 {[%clk 0:00:13]}  Bb3 {[%clk 0:00:05]} 61. Kd3 {[%clk 0:00:13]}  Kd6 {[%clk 0:00:05]} 62. Ng5 {[%clk 0:00:13]}  Bg8 {[%clk 0:00:04]} 63. Ke3 {[%clk 0:00:12]}  Ke7 {[%clk 0:00:04]} 64. Nb5 {[%clk 0:00:12]}  Nf6 {[%clk 0:00:04]} 65. Nf3 {[%clk 0:00:12]}  Ng4+ {[%clk 0:00:04]} 66. Kd3 {[%clk 0:00:13]}  Nf2+ {[%clk 0:00:04]} 67. Ke3 {[%clk 0:00:13]}  Ng4+ {[%clk 0:00:05]} 68. Ke2 {[%clk 0:00:13]}  Bc4+ {[%clk 0:00:05]} 69. Kd2 {[%clk 0:00:12]}  Bxb5 {[%clk 0:00:06]} 70. Nh4 {[%clk 0:00:11]}  Bd7 {[%clk 0:00:06]} 71. Ke2 {[%clk 0:00:11]}  Kd6 {[%clk 0:00:06]} 72. Kf3 {[%clk 0:00:10]}  Nf6 {[%clk 0:00:06]} 73. Ke3 {[%clk 0:00:11]}  Bc6 {[%clk 0:00:07]} 74. Nf5+ {[%clk 0:00:11]}  Ke6 {[%clk 0:00:07]} 75. Ng3 {[%clk 0:00:11]}  Bxe4 {[%clk 0:00:07]} 76. Nxe4 {[%clk 0:00:09]}  Nxe4 {[%clk 0:00:08]} 77. Kxe4 {[%clk 0:00:04]}  b5 {[%clk 0:00:09]} 0-1


[Site "https://www.chess.com"]

[Event "Titled Tuesday Blitz June 13 Late 2023"]
[White "Kollars, Dmitrij"]
[Black "Tanenbaum, Zachary"]
[WhiteFideId "12909572"]
[BlackFideId "2060850"]
[WhiteElo "2584"]
[BlackElo "2207"]
[Result "1/2-1/2"]
[Round "5"]
[TimeControl "180+2"]
[Date "2023.06.13"]
[WhiteClock "0:00:06"]
[BlackClock "0:00:05"]
[Board "18"]

1. e4 {[%clk 0:02:57]}  e5 {[%clk 0:03:00]} 2. Nf3 {[%clk 0:02:56]}  Nc6 {[%clk 0:03:00]} 3. Bb5 {[%clk 0:02:57]}  a6 {[%clk 0:03:00]} 4. Ba4 {[%clk 0:02:57]}  d6 {[%clk 0:03:01]} 5. O-O {[%clk 0:02:56]}  Nf6 {[%clk 0:03:01]} 6. Re1 {[%clk 0:02:52]}  Be7 {[%clk 0:03:02]} 7. c3 {[%clk 0:02:52]}  O-O {[%clk 0:03:02]} 8. h3 {[%clk 0:02:50]}  b5 {[%clk 0:03:01]} 9. Bc2 {[%clk 0:02:50]}  Bb7 {[%clk 0:02:54]} 10. d4 {[%clk 0:02:49]}  exd4 {[%clk 0:02:54]} 11. Nxd4 {[%clk 0:02:38]}  Nxd4 {[%clk 0:02:53]} 12. cxd4 {[%clk 0:02:39]}  c5 {[%clk 0:02:53]} 13. d5 {[%clk 0:02:39]}  Re8 {[%clk 0:02:50]} 14. Bf4 {[%clk 0:02:26]}  Nd7 {[%clk 0:02:46]} 15. Nd2 {[%clk 0:02:15]}  Ne5 {[%clk 0:02:46]} 16. a4 {[%clk 0:02:09]}  Ng6 {[%clk 0:02:34]} 17. Bg3 {[%clk 0:02:09]}  Bh4 {[%clk 0:02:27]} 18. Qg4 {[%clk 0:01:59]}  Bxg3 {[%clk 0:02:24]} 19. Qxg3 {[%clk 0:02:00]}  Qf6 {[%clk 0:02:22]} 20. Rab1 {[%clk 0:01:58]}  Re7 {[%clk 0:02:03]} 21. Nb3 {[%clk 0:01:41]}  Rae8 {[%clk 0:02:00]} 22. Re3 {[%clk 0:01:35]}  Ne5 {[%clk 0:01:43]} 23. Na5 {[%clk 0:01:34]}  Bc8 {[%clk 0:01:34]} 24. Rbe1 {[%clk 0:01:28]}  Bd7 {[%clk 0:01:30]} 25. b3 {[%clk 0:01:25]}  bxa4 {[%clk 0:01:28]} 26. bxa4 {[%clk 0:01:24]}  Rb8 {[%clk 0:01:26]} 27. f4 {[%clk 0:01:12]}  Ng6 {[%clk 0:01:26]} 28. e5 {[%clk 0:01:13]}  Qxf4 {[%clk 0:01:17]} 29. Qxf4 {[%clk 0:01:04]}  Nxf4 {[%clk 0:01:18]} 30. exd6 {[%clk 0:01:05]}  Rxe3 {[%clk 0:01:17]} 31. Rxe3 {[%clk 0:01:06]}  Nxd5 {[%clk 0:01:16]} 32. Re5 {[%clk 0:01:06]}  Nb4 {[%clk 0:00:30]} 33. Bb3 {[%clk 0:00:31]}  Nc6 {[%clk 0:00:28]} 34. Nxc6 {[%clk 0:00:31]}  Bxc6 {[%clk 0:00:15]} 35. Bc4 {[%clk 0:00:31]}  Rd8 {[%clk 0:00:12]} 36. Rxc5 {[%clk 0:00:13]}  Rxd6 {[%clk 0:00:12]} 37. Bxa6 {[%clk 0:00:13]}  g6 {[%clk 0:00:10]} 38. Bb5 {[%clk 0:00:08]}  Be4 {[%clk 0:00:08]} 39. a5 {[%clk 0:00:07]}  Rd2 {[%clk 0:00:08]} 40. g4 {[%clk 0:00:06]}  Rg2+ {[%clk 0:00:07]} 41. Kf1 {[%clk 0:00:06]}  Ra2 {[%clk 0:00:08]} 42. a6 {[%clk 0:00:06]}  Bg2+ {[%clk 0:00:06]} 43. Ke1 {[%clk 0:00:05]}  Bxh3 {[%clk 0:00:06]} 44. g5 {[%clk 0:00:05]}  Bg2 {[%clk 0:00:05]} 45. Bc4 {[%clk 0:00:05]}  Ra1+ {[%clk 0:00:04]} 46. Kd2 {[%clk 0:00:05]}  Kf8 {[%clk 0:00:02]} 47. Rc7 {[%clk 0:00:05]}  Ke8 {[%clk 0:00:02]} 48. Kc3 {[%clk 0:00:05]}  Kd8 {[%clk 0:00:03]} 49. Rxf7 {[%clk 0:00:05]}  Ra3+ {[%clk 0:00:03]} 50. Kb4 {[%clk 0:00:05]}  Ra1 {[%clk 0:00:03]} 51. Rxh7 {[%clk 0:00:06]}  Rb1+ {[%clk 0:00:03]} 52. Kc5 {[%clk 0:00:04]}  Rc1 {[%clk 0:00:03]} 53. a7 {[%clk 0:00:04]}  Ra1 {[%clk 0:00:03]} 54. Kd6 {[%clk 0:00:05]}  Rd1+ {[%clk 0:00:03]} 55. Ke5 {[%clk 0:00:05]}  Re1+ {[%clk 0:00:03]} 56. Kf6 {[%clk 0:00:06]}  Ra1 {[%clk 0:00:03]} 57. Kxg6 {[%clk 0:00:06]}  Be4+ {[%clk 0:00:02]} 58. Kg7 {[%clk 0:00:05]}  Bxh7 {[%clk 0:00:02]} 59. Kxh7 {[%clk 0:00:06]}  Rxa7+ {[%clk 0:00:03]} 60. Kh6 {[%clk 0:00:06]}  Ke7 {[%clk 0:00:04]} 61. g6 {[%clk 0:00:06]}  Kf6 {[%clk 0:00:04]} 62. Bd5 {[%clk 0:00:06]}  Ra1 {[%clk 0:00:04]} 63. g7 {[%clk 0:00:05]}  Rg1 {[%clk 0:00:05]} 64. g8=Q {[%clk 0:00:05]}  Rxg8 {[%clk 0:00:05]} 65. Bxg8 {[%clk 0:00:06]} 1/2-1/2


[Site "https://www.chess.com"]

[Event "Titled Tuesday Blitz June 13 Late 2023"]
[White "Rosen, Eric"]
[Black "Van Foreest, Jorden"]
[WhiteFideId "2032562"]
[BlackFideId "1039784"]
[WhiteElo "2331"]
[BlackElo "2633"]
[Result "0-1"]
[Round "5"]
[TimeControl "180+2"]
[Date "2023.06.13"]
[WhiteClock "0:00:11"]
[BlackClock "0:00:36"]
[Board "21"]

1. d4 {[%clk 0:03:00]}  d5 {[%clk 0:02:55]} 2. Bf4 {[%clk 0:03:00]}  h5 {[%clk 0:02:55]} 3. Nf3 {[%clk 0:02:56]}  f6 {[%clk 0:02:55]} 4. Qd3 {[%clk 0:02:47]}  Kf7 {[%clk 0:02:50]} 5. Nh4 {[%clk 0:02:27]}  f5 {[%clk 0:02:13]} 6. Qg3 {[%clk 0:02:23]}  Nf6 {[%clk 0:02:10]} 7. Ng6 {[%clk 0:02:06]}  Rh7 {[%clk 0:02:04]} 8. Bxc7 {[%clk 0:02:02]}  h4 {[%clk 0:01:58]} 9. Ne5+ {[%clk 0:01:30]}  Kg8 {[%clk 0:01:52]} 10. Qg6 {[%clk 0:01:24]}  Qe8 {[%clk 0:01:49]} 11. e3 {[%clk 0:01:11]}  Nc6 {[%clk 0:01:46]} 12. Qxe8 {[%clk 0:01:10]}  Nxe8 {[%clk 0:01:47]} 13. Nxc6 {[%clk 0:01:00]}  Nxc7 {[%clk 0:01:35]} 14. Ne5 {[%clk 0:01:01]}  Rh6 {[%clk 0:01:35]} 15. c4 {[%clk 0:00:59]}  Rb6 {[%clk 0:01:32]} 16. b3 {[%clk 0:00:58]}  a5 {[%clk 0:01:30]} 17. Nc3 {[%clk 0:00:53]}  dxc4 {[%clk 0:01:24]} 18. Bxc4+ {[%clk 0:00:54]}  e6 {[%clk 0:01:22]} 19. g3 {[%clk 0:00:43]}  h3 {[%clk 0:01:19]} 20. Ke2 {[%clk 0:00:38]}  Ba3 {[%clk 0:01:11]} 21. Rad1 {[%clk 0:00:35]}  Kf8 {[%clk 0:01:06]} 22. f3 {[%clk 0:00:35]}  Ne8 {[%clk 0:01:03]} 23. g4 {[%clk 0:00:35]}  Nd6 {[%clk 0:01:00]} 24. Bd3 {[%clk 0:00:34]}  Ne8 {[%clk 0:00:52]} 25. Rhg1 {[%clk 0:00:34]}  Bb4 {[%clk 0:00:47]} 26. Rc1 {[%clk 0:00:31]}  Nf6 {[%clk 0:00:39]} 27. g5 {[%clk 0:00:28]}  Ne8 {[%clk 0:00:39]} 28. Rg3 {[%clk 0:00:27]}  Ke7 {[%clk 0:00:30]} 29. Rxh3 {[%clk 0:00:26]}  Bd7 {[%clk 0:00:30]} 30. Na4 {[%clk 0:00:25]}  Bxa4 {[%clk 0:00:30]} 31. bxa4 {[%clk 0:00:25]}  Bd6 {[%clk 0:00:31]} 32. Nc4 {[%clk 0:00:25]}  Rc8 {[%clk 0:00:28]} 33. Nxb6 {[%clk 0:00:16]}  Rxc1 {[%clk 0:00:28]} 34. Kd2 {[%clk 0:00:16]}  Ra1 {[%clk 0:00:27]} 35. Nc8+ {[%clk 0:00:16]}  Kd7 {[%clk 0:00:27]} 36. Nxd6 {[%clk 0:00:17]}  Kxd6 {[%clk 0:00:27]} 37. Bc4 {[%clk 0:00:17]}  Rg1 {[%clk 0:00:27]} 38. Rh8 {[%clk 0:00:14]}  Ke7 {[%clk 0:00:27]} 39. h4 {[%clk 0:00:15]}  Rg3 {[%clk 0:00:25]} 40. f4 {[%clk 0:00:14]}  Rg2+ {[%clk 0:00:26]} 41. Kd3 {[%clk 0:00:13]}  Nd6 {[%clk 0:00:26]} 42. d5 {[%clk 0:00:10]}  Ne4 {[%clk 0:00:25]} 43. Kd4 {[%clk 0:00:08]}  Rd2+ {[%clk 0:00:23]} 44. Ke5 {[%clk 0:00:08]}  Nd6 {[%clk 0:00:24]} 45. dxe6 {[%clk 0:00:02]}  Nxc4+ {[%clk 0:00:24]} 46. Kxf5 {[%clk 0:00:03]}  Nxe3+ {[%clk 0:00:25]} 47. Kg6 {[%clk 0:00:03]}  Rf2 {[%clk 0:00:21]} 48. Kxg7 {[%clk 0:00:03]}  Rxf4 {[%clk 0:00:21]} 49. Rb8 {[%clk 0:00:03]}  Nf5+ {[%clk 0:00:21]} 50. Kh7 {[%clk 0:00:02]}  Rxh4+ {[%clk 0:00:21]} 51. Kg6 {[%clk 0:00:02]}  Kxe6 {[%clk 0:00:21]} 52. Re8+ {[%clk 0:00:02]}  Ne7+ {[%clk 0:00:22]} 53. Kg7 {[%clk 0:00:02]}  Rxa4 {[%clk 0:00:23]} 54. g6 {[%clk 0:00:02]}  Rg4 {[%clk 0:00:23]} 55. Kh7 {[%clk 0:00:02]}  Rxg6 {[%clk 0:00:23]} 56. Rxe7+ {[%clk 0:00:02]}  Kxe7 {[%clk 0:00:24]} 57. Kxg6 {[%clk 0:00:03]}  Ke6 {[%clk 0:00:25]} 58. Kg5 {[%clk 0:00:01]}  Ke5 {[%clk 0:00:25]} 59. Kg4 {[%clk 0:00:02]}  Ke4 {[%clk 0:00:26]} 60. Kg3 {[%clk 0:00:02]}  Ke3 {[%clk 0:00:27]} 61. Kg4 {[%clk 0:00:03]}  Kd2 {[%clk 0:00:27]} 62. Kf4 {[%clk 0:00:03]}  Kc3 {[%clk 0:00:27]} 63. Ke4 {[%clk 0:00:03]}  Kb2 {[%clk 0:00:28]} 64. a4 {[%clk 0:00:04]}  Kb3 {[%clk 0:00:28]} 65. Kd3 {[%clk 0:00:05]}  Kxa4 {[%clk 0:00:29]} 66. Kc2 {[%clk 0:00:06]}  Kb4 {[%clk 0:00:30]} 67. Kb1 {[%clk 0:00:06]}  Kb3 {[%clk 0:00:31]} 68. Ka1 {[%clk 0:00:07]}  Kc2 {[%clk 0:00:32]} 69. Ka2 {[%clk 0:00:08]}  b5 {[%clk 0:00:32]} 70. Ka1 {[%clk 0:00:08]}  b4 {[%clk 0:00:33]} 71. Ka2 {[%clk 0:00:08]}  b3+ {[%clk 0:00:33]} 72. Ka1 {[%clk 0:00:09]}  b2+ {[%clk 0:00:33]} 73. Ka2 {[%clk 0:00:10]}  b1=Q+ {[%clk 0:00:34]} 74. Ka3 {[%clk 0:00:11]}  Qb4+ {[%clk 0:00:35]} 75. Ka2 {[%clk 0:00:11]}  Qa4# {[%clk 0:00:36]} 0-1


[Site "https://www.chess.com"]

[Event "Titled Tuesday Blitz June 13 Late 2023"]
[White "Zochowski, Kacper"]
[Black "Babazada, Khazar"]
[WhiteFideId "1125494"]
[BlackFideId "13413554"]
[WhiteElo "2235"]
[BlackElo "2369"]
[Result "0-1"]
[Round "5"]
[TimeControl "180+2"]
[Date "2023.06.13"]
[WhiteClock "0:01:33"]
[BlackClock "0:02:18"]
[Board "23"]

1. Nf3 {[%clk 0:02:58]}  c5 {[%clk 0:02:59]} 2. c4 {[%clk 0:02:58]}  Nf6 {[%clk 0:03:00]} 3. b3 {[%clk 0:02:58]}  Nc6 {[%clk 0:03:00]} 4. Bb2 {[%clk 0:02:59]}  e6 {[%clk 0:03:00]} 5. g3 {[%clk 0:02:57]}  Be7 {[%clk 0:03:00]} 6. Bg2 {[%clk 0:02:57]}  O-O {[%clk 0:03:00]} 7. O-O {[%clk 0:02:58]}  a6 {[%clk 0:03:01]} 8. Nc3 {[%clk 0:02:58]}  d6 {[%clk 0:03:01]} 9. d4 {[%clk 0:02:58]}  cxd4 {[%clk 0:03:01]} 10. Nxd4 {[%clk 0:02:59]}  Bd7 {[%clk 0:03:01]} 11. Rc1 {[%clk 0:02:59]}  Qb8 {[%clk 0:03:01]} 12. Qd2 {[%clk 0:02:01]}  Nxd4 {[%clk 0:03:01]} 13. Qxd4 {[%clk 0:02:02]}  Bc6 {[%clk 0:03:02]} 14. Bxc6 {[%clk 0:01:57]}  bxc6 {[%clk 0:03:03]} 15. Ba3 {[%clk 0:01:55]}  Rd8 {[%clk 0:02:58]} 16. Ne4 {[%clk 0:01:54]}  Nxe4 {[%clk 0:02:56]} 17. Qxe4 {[%clk 0:01:55]}  d5 {[%clk 0:02:55]} 18. cxd5 {[%clk 0:01:49]}  Bxa3 {[%clk 0:02:53]} 19. Rxc6 {[%clk 0:01:49]}  Rxd5 {[%clk 0:02:47]} 20. Rxe6 {[%clk 0:01:50]}  Rd2 {[%clk 0:02:36]} 21. Rb6 {[%clk 0:01:43]}  Qxb6 {[%clk 0:02:30]} 22. Qxa8+ {[%clk 0:01:42]}  Rd8 {[%clk 0:02:30]} 23. Qe4 {[%clk 0:01:41]}  g6 {[%clk 0:02:26]} 24. e3 {[%clk 0:01:39]}  Rd2 {[%clk 0:02:19]} 25. Qe8+ {[%clk 0:01:34]}  Kg7 {[%clk 0:02:19]} 26. Qe5+ {[%clk 0:01:34]}  Qf6 {[%clk 0:02:20]} 27. Qa5 {[%clk 0:01:34]}  Rxa2 {[%clk 0:02:18]} 28. Qxa6 {[%clk 0:01:33]}  Qxa6 {[%clk 0:02:18]} 0-1


[Site "https://www.chess.com"]

[Event "Titled Tuesday Blitz June 13 Late 2023"]
[White "Mekhitarian, Krikor Sevag"]
[Black "Goryachkina, Aleksandra"]
[WhiteFideId "2107660"]
[BlackFideId "4147103"]
[WhiteElo "2604"]
[BlackElo "2471"]
[Result "0-1"]
[Round "5"]
[TimeControl "180+2"]
[Date "2023.06.13"]
[WhiteClock "0:00:00"]
[BlackClock "0:00:02"]
[Board "28"]

1. Nf3 {[%clk 0:03:00]}  d5 {[%clk 0:02:59]} 2. c4 {[%clk 0:02:59]}  e6 {[%clk 0:02:58]} 3. d4 {[%clk 0:02:57]}  Nf6 {[%clk 0:02:57]} 4. cxd5 {[%clk 0:02:57]}  exd5 {[%clk 0:02:57]} 5. Nc3 {[%clk 0:02:58]}  c6 {[%clk 0:02:54]} 6. Bf4 {[%clk 0:02:57]}  Bd6 {[%clk 0:02:50]} 7. Bxd6 {[%clk 0:02:56]}  Qxd6 {[%clk 0:02:51]} 8. e3 {[%clk 0:02:57]}  Bf5 {[%clk 0:02:49]} 9. Nh4 {[%clk 0:02:57]}  Bg6 {[%clk 0:02:44]} 10. Qb3 {[%clk 0:02:50]}  Qc7 {[%clk 0:02:35]} 11. Rc1 {[%clk 0:02:47]}  Qb6 {[%clk 0:02:34]} 12. Qa3 {[%clk 0:02:43]}  Nbd7 {[%clk 0:02:30]} 13. Nxg6 {[%clk 0:02:34]}  hxg6 {[%clk 0:02:29]} 14. Bd3 {[%clk 0:02:35]}  Qd8 {[%clk 0:02:20]} 15. O-O {[%clk 0:02:21]}  Qe7 {[%clk 0:02:19]} 16. Qxe7+ {[%clk 0:02:19]}  Kxe7 {[%clk 0:02:19]} 17. b4 {[%clk 0:02:20]}  Rac8 {[%clk 0:02:02]} 18. a4 {[%clk 0:02:12]}  Rhe8 {[%clk 0:01:55]} 19. f3 {[%clk 0:01:57]}  Nf8 {[%clk 0:01:45]} 20. Kf2 {[%clk 0:01:55]}  Ne6 {[%clk 0:01:44]} 21. Ne2 {[%clk 0:01:50]}  Kf8 {[%clk 0:01:41]} 22. Rc2 {[%clk 0:01:49]}  Re7 {[%clk 0:01:37]} 23. Rfc1 {[%clk 0:01:48]}  Rec7 {[%clk 0:01:36]} 24. h4 {[%clk 0:01:42]}  Ne8 {[%clk 0:01:33]} 25. g4 {[%clk 0:01:38]}  Nd6 {[%clk 0:01:33]} 26. Kg3 {[%clk 0:01:29]}  Ke7 {[%clk 0:01:32]} 27. Rh1 {[%clk 0:01:11]}  Ra8 {[%clk 0:01:23]} 28. Rhc1 {[%clk 0:01:02]}  Kd7 {[%clk 0:01:22]} 29. Nc3 {[%clk 0:00:52]}  a5 {[%clk 0:00:58]} 30. b5 {[%clk 0:00:51]}  Rcc8 {[%clk 0:00:54]} 31. f4 {[%clk 0:00:50]}  Re8 {[%clk 0:00:31]} 32. Kf3 {[%clk 0:00:39]}  Re7 {[%clk 0:00:20]} 33. Rb1 {[%clk 0:00:26]}  Rae8 {[%clk 0:00:18]} 34. Re2 {[%clk 0:00:25]}  Nc7 {[%clk 0:00:16]} 35. bxc6+ {[%clk 0:00:24]}  bxc6 {[%clk 0:00:16]} 36. Rc1 {[%clk 0:00:16]}  f5 {[%clk 0:00:16]} 37. gxf5 {[%clk 0:00:14]}  gxf5 {[%clk 0:00:11]} 38. Rg1 {[%clk 0:00:14]}  Rb8 {[%clk 0:00:08]} 39. Reg2 {[%clk 0:00:13]}  Rb3 {[%clk 0:00:08]} 40. Rc2 {[%clk 0:00:13]}  Rb8 {[%clk 0:00:04]} 41. Rg3 {[%clk 0:00:10]}  Rb3 {[%clk 0:00:04]} 42. Kf2 {[%clk 0:00:08]}  Ra3 {[%clk 0:00:04]} 43. h5 {[%clk 0:00:04]}  Rb3 {[%clk 0:00:03]} 44. Rg5 {[%clk 0:00:04]}  Ke6 {[%clk 0:00:02]} 45. Kf3 {[%clk 0:00:04]}  Rf7 {[%clk 0:00:01]} 46. Rg6+ {[%clk 0:00:03]}  Ke7 {[%clk 0:00:02]} 47. Rgg2 {[%clk 0:00:00]}  Ne6 {[%clk 0:00:02]} 0-1


[Site "https://www.chess.com"]